[Event "FIDE World Rapid-ch Open 2018"]
[White "Yu, Yangyi"]
[Black "Nakamura, Hikaru"]
[Site "St. Petersburg"]
[Round "14.2"]
[Annotator "ChessBase"]
[Result "0-1"]
[Date "2018.12.28"]
[WhiteElo "2764"]
[BlackElo "2746"]
[PlyCount "240"]
[TimeControl "900+10"]

1. e4 {[%emt 0:0:0]} d5 {[%emt 0:0:0]} 2. exd5 {[%emt 0:0:0]} Qxd5 {[%emt 0:0:0]
} 3. Nc3 {[%emt 0:0:5]} Qd8 {[%emt 0:0:0]} 4. d4 {[%emt 0:0:0]} Nf6 {[%emt 0:0:0]} 5. Nf3 {[%emt 0:0:6]} g6 {[%emt 0:0:0]} 6. Be2 {[%emt 0:0:25]
} Bg7 {[%emt 0:0:0]} 7. 0-0 {[%emt 0:0:2]} 0-0 {[%emt 0:0:0]} 8. h3 {[%emt 0:0:21]} Nc6 {[%emt 0:0:25]} 9. a3 {[%emt 0:0:57]} e6 {[%emt 0:0:29]
} 10. Bf4 {[%emt 0:1:10]} b6 {[%emt 0:0:5]} 11. Nb5 {[%emt 0:0:0]} a6 {[%emt 0:1:43]} 12. Nc3 {[%emt 0:0:18]} Bb7 {[%emt 0:0:5]} 13. Qd2 {[%emt 0:0:2]} Ne7 {[%emt 0:0:2]} 14. Rad1 {[%emt 0:0:23]} Nf5 {[%emt 0:1:43]
} 15. Be5 {[%emt 0:1:11]} Qe7 {[%emt 0:0:32]} 16. Qf4 {[%emt 0:0:0]} Rac8 {[%emt 0:0:41]} 17. Nh4 {[%emt 0:0:50]} Nxh4 {[%emt 0:0:59]} 18. Qxh4 {[%emt 0:0:1]} Nd5 {[%emt 0:0:1]} 19. Qxe7 {[%emt 0:0:27]} Nxe7 {[%emt 0:0:2]
} 20. Bxg7 {[%emt 0:0:51]} Kxg7 {[%emt 0:0:2]} 21. Bd3 {[%emt 0:0:0]
} Rfd8 {[%emt 0:3:26]} 22. Be4 {[%emt 0:0:2]} Bxe4 {[%emt 0:0:0]} 23. Nxe4 {[%emt 0:0:1]} Rd7 {[%emt 0:0:1]} 24. c3 {[%emt 0:0:23]} Rcd8 {[%emt 0:0:2]} 25. Rde1 {[%emt 0:0:30]} Nc6 {[%emt 0:0:9]} 26. f4 {[%emt 0:1:22]
} Na5 {[%emt 0:0:9]} 27. g4 {[%emt 0:0:18]} Nc4 {[%emt 0:0:0]} 28. Re2 {[%emt 0:0:5]} Rd5 {[%emt 0:0:29]} 29. b3 {[%emt 0:1:16]} Nd6 {[%emt 0:0:8]} 30. Nxd6 {[%emt 0:0:18]} R8xd6 {[%emt 0:0:13]} 31. Re5 {[%emt 0:0:32]
} c5 {[%emt 0:0:43]} 32. dxc5 {[%emt 0:1:4]} Rxc5 {[%emt 0:0:0]} 33. Rxc5 {[%emt 0:0:2]} bxc5 {[%emt 0:0:1]} 34. Kg2 {[%emt 0:0:1]} Kf6 {[%emt 0:0:34]} 35. b4 {[%emt 0:0:10]} c4 {[%emt 0:0:22]} 36. a4 {[%emt 0:0:14]
} Ke7 {[%emt 0:0:4]} 37. Re1 {[%emt 0:0:37]} Rd3 {[%emt 0:0:0]} 38. Re5 {[%emt 0:1:47]} Rxc3 {[%emt 0:0:8]} 39. Rc5 {[%emt 0:0:1]} Ra3 {[%emt 0:1:58]} 40. Rxc4 {[%emt 0:1:19]} Rxa4 {[%emt 0:0:2]} 41. Rc7+ {[%emt 0:0:0]
} Kf8 {[%emt 0:0:20]} 42. Rb7 {[%emt 0:0:2]} Ra2+ {[%emt 0:0:0]} 43. Kg3 {[%emt 0:0:10]} Ra3+ {[%emt 0:0:1]} 44. Kg2 {[%emt 0:0:0]} h5 {[%emt 0:0:16]} 45. gxh5 {[%emt 0:1:10]} gxh5 {[%emt 0:0:1]} 46. h4 {[%emt 0:0:0]
} Rb3 {[%emt 0:0:44]} 47. Rb6 {[%emt 0:0:7]} Kg7 {[%emt 0:0:0]} 48. Rxa6 {[%emt 0:0:32]} Rxb4 {[%emt 0:0:1]} 49. Kf3 {[%emt 0:0:1]} Rb3+ {[%emt 0:0:4]} 50. Kg2 {[%emt 0:0:13]} Rb5 {[%emt 0:0:1]} 51. Ra8 {[%emt 0:0:29]
} Kf6 {[%emt 0:0:2]} 52. Rh8 {[%emt 0:0:7]} Kg7 {[%emt 0:0:0]} 53. Ra8 {[%emt 0:0:4]} Rd5 {[%emt 0:0:15]} 54. Kf3 {[%emt 0:0:39]} Rd3+ {[%emt 0:0:8]} 55. Kg2 {[%emt 0:0:3]} Kf6 {[%emt 0:0:1]} 56. Ra5 {[%emt 0:0:13]
} Rd5 {[%emt 0:0:1]} 57. Ra7 {[%emt 0:0:5]} Kg6 {[%emt 0:0:0]} 58. Re7 {[%emt 0:0:13]} Rd3 {[%emt 0:0:11]} 59. Ra7 {[%emt 0:0:32]} f6 {[%emt 0:0:11]} 60. Ra5 {[%emt 0:0:25]} Rd5 {[%emt 0:0:2]} 61. Ra3 {[%emt 0:0:4]
} Kf5 {[%emt 0:0:27]} 62. Kf3 {[%emt 0:0:20]} Rb5 {[%emt 0:0:0]} 63. Kg3 {[%emt 0:0:6]} Rc5 {[%emt 0:0:23]} 64. Rb3 {[%emt 0:0:8]} Rd5 {[%emt 0:0:4]} 65. Kf3 {[%emt 0:0:8]} Ra5 {[%emt 0:0:4]} 66. Kg3 {[%emt 0:0:5]
} Rc5 {[%emt 0:0:21]} 67. Ra3 {[%emt 0:0:5]} Rd5 {[%emt 0:0:0]} 68. Kf3 {[%emt 0:0:5]} Rd4 {[%emt 0:0:8]} 69. Ra5+ {[%emt 0:0:0]} e5 70. fxe5 fxe5 {[%emt 0:0:1]} 71. Ra8 {[%emt 0:0:26]} Rxh4 {[%emt 0:0:19]} 72. Rf8+ {[%emt 0:0:2]} Ke6 {[%emt 0:0:12]} 73. Re8+ {[%emt 0:0:2]} Kf6 {[%emt 0:0:2]
} 74. Rf8+ {[%emt 0:0:29]} Ke7 {[%emt 0:0:12]} 75. Rh8 {[%emt 0:0:18]
} Rf4+ {[%emt 0:0:6]} 76. Ke3 {[%emt 0:0:2]} h4 {[%emt 0:0:0]} 77. Rh6 {[%emt 0:0:1]} Kf7 {[%emt 0:0:1]} 78. Ra6 {[%emt 0:0:10]} Kg7 {[%emt 0:0:30]} 79. Ra7+ {[%emt 0:0:50]} Kg6 {[%emt 0:0:8]} 80. Ra8 {[%emt 0:0:3]
} Rf7 {[%emt 0:0:55]} 81. Rg8+ {[%emt 0:0:13]} Rg7 {[%emt 0:0:0]} 82. Re8 {[%emt 0:0:14]} h3 {[%emt 0:0:15]} 83. Re6+ {[%emt 0:0:12]} Kf5 {[%emt 0:0:6]} 84. Rh6 {[%emt 0:0:1]} Rg3+ {[%emt 0:0:1]} 85. Kf2 {[%emt 0:0:0]
} Ra3 {[%emt 0:0:2]} 86. Rh4 {[%emt 0:0:3]} Kg5 {[%emt 0:0:0]} 87. Rh8 {[%emt 0:0:9]} Kg4 {[%emt 0:0:16]} 88. Rg8+ {[%emt 0:0:18]} Kf4 {[%emt 0:0:1]} 89. Rf8+ {[%emt 0:0:1]} Ke4 {[%emt 0:0:1]} 90. Rg8 Kf5 91. Rf8+ {[%emt 0:0:9]} Kg6 {[%emt 0:1:46]} 92. Rg8+ {[%emt 0:0:8]} Kf6 {[%emt 0:0:13]
} 93. Rf8+ {[%emt 0:0:1]} Ke7 {[%emt 0:0:1]} 94. Rh8 {[%emt 0:0:3]
} Kd6 {[%emt 0:0:1]} 95. Rd8+ {[%emt 0:0:9]} Kc5 {[%emt 0:0:0]} 96. Rc8+ {[%emt 0:0:3]} Kd4 {[%emt 0:0:1]} 97. Rd8+ {[%emt 0:0:3]} Ke4 {[%emt 0:0:6]} 98. Rh8 {[%emt 0:0:1]} Rc3 {[%emt 0:2:2]} 99. Rh7 {[%emt 0:0:12]
} Kf4 {[%emt 0:0:51]} 100. Rh4+ {[%emt 0:0:23]} Kg5 {[%emt 0:0:0]} 101. Rh8 {[%emt 0:0:1]} e4 {[%emt 0:0:19]} 102. Rg8+ {[%emt 0:0:1]
} Kf5 {[%emt 0:0:20]} 103. Rf8+ {[%emt 0:0:3]} Ke5 {[%emt 0:0:0]} 104. Re8+ {[%emt 0:0:12]} Kd4 {[%emt 0:0:1]} 105. Rd8+ {[%emt 0:0:3]} Kc4 {[%emt 0:0:1]
} 106. Rc8+ {[%emt 0:0:30]} Kd3 {[%emt 0:0:3]} 107. Rd8+ {[%emt 0:0:5]
} Kc2 {[%emt 0:0:4]} 108. Ke2 {[%emt 0:0:40]} h2 {[%emt 0:0:0]} 109. Rh8 {[%emt 0:0:7]} Kb1 {[%emt 0:0:28]} 110. Rb8+ {[%emt 0:0:50]} Ka2 {[%emt 0:0:7]} 111. Ra8+ {[%emt 0:0:3]} Kb3 {[%emt 0:0:12]} 112. Rb8+ {[%emt 0:0:9]} Kc4 {[%emt 0:0:22]} 113. Rh8 {[%emt 0:0:28]} Ra3 {[%emt 0:0:0]} 114. Rc8+ {[%emt 0:0:15]} Kd4 {[%emt 0:0:9]} 115. Rd8+ {[%emt 0:0:0]} Kc5 {[%emt 0:0:6]} 116. Rc8+ {[%emt 0:0:8]} Kd6 {[%emt 0:0:4]} 117. Rd8+ {[%emt 0:0:12]} Ke5 {[%emt 0:0:11]} 118. Rh8 {[%emt 0:0:4]} Kf4 {[%emt 0:0:18]
} 119. Rf8+ {[%emt 0:0:11]} Kg3 {[%emt 0:0:4]} 120. Rg8+ {[%emt 0:0:13]
} Kh3 {[%emt 0:0:3]} 0-1

[Event "FIDE World Rapid-ch Open 2018"]
[White "Wang, Hao"]
[Black "Dubov, Daniil"]
[Site "St. Petersburg"]
[Round "14.3"]
[Annotator "ChessBase"]
[Result "0-1"]
[Date "2018.12.28"]
[WhiteElo "2730"]
[BlackElo "2703"]
[PlyCount "78"]
[TimeControl "900+10"]

1. Nf3 {[%emt 0:0:0]} Nf6 {[%emt 0:0:0]} 2. c4 {[%emt 0:0:0]} g6 {[%emt 0:0:0]
} 3. g3 {[%emt 0:0:21]} Bg7 {[%emt 0:0:6]} 4. Bg2 {[%emt 0:0:0]} c6 {[%emt 0:0:5]} 5. d4 {[%emt 0:0:14]} d5 {[%emt 0:0:9]} 6. Nbd2 {[%emt 0:0:2]
} 0-0 {[%emt 0:0:4]} 7. 0-0 {[%emt 0:0:2]} a5 {[%emt 0:0:11]
} 8. b3 {[%emt 0:0:8]} Ne4 {[%emt 0:0:14]} 9. Bb2 {[%emt 0:0:17]} Bf5 {[%emt 0:0:1]
} 10. Nh4 {[%emt 0:2:24]} Nxd2 {[%emt 0:0:3]} 11. Qxd2 {[%emt 0:0:2]
} Be6 {[%emt 0:0:1]} 12. f4 {[%emt 0:0:1]} Nd7 {[%emt 0:0:0]} 13. f5 {[%emt 0:0:53]} gxf5 {[%emt 0:0:2]} 14. Nxf5 {[%emt 0:0:2]} Bxf5 {[%emt 0:0:7]} 15. Rxf5 {[%emt 0:0:2]} e6 {[%emt 0:0:1]} 16. Rff1 {[%emt 0:0:23]
} f5 {[%emt 0:0:32]} 17. cxd5 {[%emt 0:1:0]} cxd5 {[%emt 0:0:0]} 18. Rac1 {[%emt 0:0:16]} Nf6 {[%emt 0:0:7]} 19. Bf3 {[%emt 0:0:17]} a4 {[%emt 0:0:31]} 20. Qe3 {[%emt 0:1:49]} Qd7 {[%emt 0:0:13]} 21. Rc2 {[%emt 0:0:27]
} axb3 {[%emt 0:0:12]} 22. Qxb3 {[%emt 0:0:44]} Rac8 {[%emt 0:0:0]} 23. Rfc1 {[%emt 0:0:5]} Bh6 {[%emt 0:0:2]} 24. Rxc8 {[%emt 0:0:15]
} Rxc8 {[%emt 0:0:2]} 25. Rc5 {[%emt 0:0:41]} Bf8 {[%emt 0:1:48]} 26. Rb5 {[%emt 0:0:43]
} Rc7 {[%emt 0:0:11]} 27. Rb6 {[%emt 0:0:6]} Ne4 {[%emt 0:0:0]} 28. Bxe4 {[%emt 0:0:59]} fxe4 {[%emt 0:0:2]} 29. Kg2 {[%emt 0:1:35]} Bg7 {[%emt 0:0:47]} 30. Rb5 {[%emt 0:2:13]} Qf7 {[%emt 0:0:59]} 31. Rb6 {[%emt 0:1:41]
} Bh6 {[%emt 0:0:36]} 32. Qd1 {[%emt 0:1:29]} Be3 {[%emt 0:0:0]} 33. Qf1 {[%emt 0:0:1]} Qh5 {[%emt 0:2:13]} 34. Rxe6 {[%emt 0:0:52]} Rc2 {[%emt 0:0:4]} 35. Kh1 {[%emt 0:0:16]} Rxb2 {[%emt 0:1:36]} 36. Re5 {[%emt 0:0:3]
} Qf7 {[%emt 0:1:3]} 37. Rf5 {[%emt 0:0:1]} Qe6 {[%emt 0:0:0]} 38. Re5 {[%emt 0:0:36]} Qd7 {[%emt 0:0:7]} 39. Qf6 {[%emt 0:0:11]} Rb1+ {[%emt 0:0:2]} 0-1

[Event "FIDE World Rapid-ch Open 2018"]
[White "Artemiev, Vladislav"]
[Black "Gelfand, Boris"]
[Site "St. Petersburg"]
[Round "14.4"]
[Annotator "ChessBase"]
[Result "1-0"]
[Date "2018.12.28"]
[WhiteElo "2709"]
[BlackElo "2673"]
[PlyCount "63"]
[TimeControl "900+10"]

1. d4 {[%emt 0:0:3]} Nf6 {[%emt 0:0:0]} 2. Bg5 {[%emt 0:0:3]} d5 {[%emt 0:0:0]
} 3. Nd2 {[%emt 0:0:2]} c5 {[%emt 0:0:14]} 4. e3 {[%emt 0:0:0]} Qb6 {[%emt 0:1:1]} 5. dxc5 {[%emt 0:1:3]} Qxb2 {[%emt 0:1:3]} 6. Rb1 {[%emt 0:1:18]} Qc3 {[%emt 0:0:11]} 7. Bb5+ {[%emt 0:0:8]} Nc6 {[%emt 0:0:0]} 8. Ngf3 {[%emt 0:2:39]} e6 {[%emt 0:0:49]} 9. 0-0 {[%emt 0:0:30]} Qxc5 {[%emt 0:1:5]} 10. Bxf6 {[%emt 0:3:1]} gxf6 {[%emt 0:0:1]} 11. c4 {[%emt 0:0:1]
} Bg7 {[%emt 0:2:3]} 12. Nb3 {[%emt 0:0:15]} Qd6 {[%emt 0:0:0]} 13. cxd5 {[%emt 0:0:2]} exd5 {[%emt 0:0:31]} 14. Nbd4 {[%emt 0:0:2]} 0-0 {[%emt 0:0:28]} 15. Bxc6 {[%emt 0:0:43]} bxc6 {[%emt 0:0:2]} 16. Nh4 {[%emt 0:0:0]
} f5 {[%emt 0:2:19]} 17. Nhxf5 {[%emt 0:0:8]} Bxf5 {[%emt 0:0:0]} 18. Nxf5 {[%emt 0:0:1]} Qf6 {[%emt 0:0:1]} 19. Qg4 {[%emt 0:2:20]} Rab8 {[%emt 0:0:21]} 20. g3 {[%emt 0:1:24]} Kh8 {[%emt 0:0:47]} 21. Rfc1 {[%emt 0:0:29]
} Rxb1 {[%emt 0:1:9]} 22. Rxb1 {[%emt 0:0:2]} Qg6 {[%emt 0:0:0]} 23. Qf4 {[%emt 0:0:23]} Qe6 {[%emt 0:0:21]} 24. Rb8 {[%emt 0:0:57]} Qf6 {[%emt 0:1:53]} 25. Rb7 {[%emt 0:0:44]} c5 {[%emt 0:1:14]} 26. Rxa7 {[%emt 0:0:2]
} Qe6 {[%emt 0:0:24]} 27. Re7 {[%emt 0:1:6]} Qf6 {[%emt 0:0:0]} 28. Rd7 {[%emt 0:0:16]} Qa1+ {[%emt 0:0:51]} 29. Kg2 {[%emt 0:0:2]} Qxa2 {[%emt 0:0:2]} 30. Qg5 {[%emt 0:1:5]} Qb2 {[%emt 0:0:47]} 31. Nxg7 {[%emt 0:0:3]
} Qxg7 {[%emt 0:0:3]} 32. Qxd5 {[%emt 0:0:0]} 1-0

[Event "FIDE World Rapid-ch Open 2018"]
[White "Salem, A.R. Saleh"]
[Black "Mamedyarov, Shakhriyar"]
[Site "St. Petersburg"]
[Round "14.5"]
[Annotator "ChessBase"]
[Result "0-1"]
[Date "2018.12.28"]
[WhiteElo "2660"]
[BlackElo "2817"]
[PlyCount "96"]
[TimeControl "900+10"]

1. e4 {[%emt 0:0:0]} e5 {[%emt 0:0:2]} 2. Nf3 {[%emt 0:0:0]} Nc6 {[%emt 0:0:1]
} 3. Bb5 {[%emt 0:0:0]} a6 {[%emt 0:0:16]} 4. Ba4 {[%emt 0:0:0]} Nf6 {[%emt 0:0:1]} 5. d3 {[%emt 0:0:0]} b5 {[%emt 0:0:6]} 6. Bb3 {[%emt 0:0:2]
} Bc5 {[%emt 0:0:1]} 7. Nc3 {[%emt 0:0:38]} h6 {[%emt 0:0:52]
} 8. Nd5 {[%emt 0:0:34]} d6 {[%emt 0:0:23]} 9. c3 {[%emt 0:0:4]} Rb8 {[%emt 0:0:3]
} 10. 0-0 {[%emt 0:0:11]} 0-0 {[%emt 0:0:13]} 11. d4 {[%emt 0:0:0]} Ba7 {[%emt 0:0:24]} 12. Be3 {[%emt 0:0:3]} Bg4 {[%emt 0:1:22]} 13. dxe5 {[%emt 0:3:29]} Nxd5 {[%emt 0:3:21]} 14. Qxd5 {[%emt 0:4:59]} Bxe3 {[%emt 0:1:42]
} 15. fxe3 {[%emt 0:1:12]} Be6 {[%emt 0:0:33]} 16. Qxc6 {[%emt 0:0:2]
} Rb6 {[%emt 0:0:2]} 17. Qxb6 {[%emt 0:0:2]} cxb6 {[%emt 0:0:0]} 18. Rad1 {[%emt 0:0:40]} Bxb3 {[%emt 0:1:25]} 19. axb3 {[%emt 0:0:0]} Qa8 {[%emt 0:0:1]} 20. exd6 {[%emt 0:0:27]} Qxe4 {[%emt 0:0:2]} 21. d7 {[%emt 0:0:24]} Rd8 {[%emt 0:0:6]} 22. Rd4 {[%emt 0:0:10]} Qe6 {[%emt 0:0:0]} 23. Rfd1 {[%emt 0:0:5]} Qxb3 {[%emt 0:0:33]} 24. R1d2 {[%emt 0:0:0]} a5 {[%emt 0:1:40]} 25. h3 {[%emt 0:2:9]} Kf8 {[%emt 0:0:44]} 26. Rd6 {[%emt 0:0:31]
} b4 {[%emt 0:0:28]} 27. Nd4 {[%emt 0:2:41]} Qa4 {[%emt 0:0:0]} 28. cxb4 {[%emt 0:0:15]} Rxd7 {[%emt 0:1:41]} 29. Ne6+ {[%emt 0:0:3]} fxe6 {[%emt 0:0:1]} 30. Rxd7 {[%emt 0:0:1]} Qxb4 {[%emt 0:0:3]} 31. Rc2 {[%emt 0:0:26]
} Kg8 {[%emt 0:0:10]} 32. Kf2 {[%emt 0:0:12]} a4 {[%emt 0:0:0]} 33. Rd4 {[%emt 0:0:9]} Qb3 {[%emt 0:0:6]} 34. Rcd2 {[%emt 0:0:1]} b5 {[%emt 0:0:8]} 35. R4d3 {[%emt 0:0:1]} Qb4 {[%emt 0:0:2]} 36. Rd4 {[%emt 0:0:2]
} Qc5 {[%emt 0:0:2]} 37. Rd8+ {[%emt 0:0:38]} Kh7 {[%emt 0:0:0]} 38. Ra8 {[%emt 0:0:7]} Qf5+ {[%emt 0:0:8]} 39. Kg1 {[%emt 0:0:14]} Qe4 {[%emt 0:0:1]} 40. Rdd8 {[%emt 0:0:4]} Qxe3+ {[%emt 0:0:5]} 41. Kh1 {[%emt 0:0:3]
} Qe1+ {[%emt 0:0:1]} 42. Kh2 {[%emt 0:0:1]} Qe5+ {[%emt 0:0:0]} 43. Kh1 {[%emt 0:0:4]} Qxb2 {[%emt 0:0:3]} 44. h4 {[%emt 0:0:13]} Qf2 {[%emt 0:0:20]} 45. g3 {[%emt 0:0:35]} Qxg3 {[%emt 0:0:25]} 46. Rh8+ {[%emt 0:0:2]
} Kg6 {[%emt 0:0:2]} 47. h5+ {[%emt 0:0:1]} Kxh5 {[%emt 0:0:0]} 48. Rab8 {[%emt 0:0:22]} Kh4 {[%emt 0:0:24]} 0-1

[Event "FIDE World Rapid-ch Open 2018"]
[White "Ponkratov, Pavel"]
[Black "Karjakin, Sergey"]
[Site "St. Petersburg"]
[Round "14.6"]
[Annotator "ChessBase"]
[Result "1/2-1/2"]
[Date "2018.12.28"]
[WhiteElo "2630"]
[BlackElo "2753"]
[PlyCount "25"]
[TimeControl "900+10"]

1. d4 {[%emt 0:0:0]} Nf6 {[%emt 0:0:0]} 2. c4 {[%emt 0:0:0]} e6 {[%emt 0:0:0]} 3. Nf3 {[%emt 0:0:0]} d5 {[%emt 0:0:0]} 4. g3 {[%emt 0:0:0]} Bb4+ {[%emt 0:0:0]} 5. Nc3 {[%emt 0:0:7]} 0-0 {[%emt 0:0:13]} 6. a3 {[%emt 0:0:0]} Be7 {[%emt 0:0:21]} 7. Ne5 {[%emt 0:2:20]} c5 {[%emt 0:3:7]} 8. cxd5 {[%emt 0:0:10]} Nxd5 {[%emt 0:0:18]} 9. Bg2 {[%emt 0:1:6]} cxd4 {[%emt 0:0:9]
} 10. Nxd5 {[%emt 0:0:11]} exd5 {[%emt 0:0:1]} 11. 0-0 {[%emt 0:0:33]
} Bf6 {[%emt 0:0:14]} 12. Nd3 {[%emt 0:0:2]} Nc6 {[%emt 0:0:0]} 13. Qb3 {[%emt 0:0:24]} 1/2-1/2

[Event "FIDE World Rapid-ch Open 2018"]
[White "Matlakov, Maxim"]
[Black "Giri, Anish"]
[Site "St. Petersburg"]
[Round "14.7"]
[Annotator "ChessBase"]
[Result "1/2-1/2"]
[Date "2018.12.28"]
[WhiteElo "2700"]
[BlackElo "2783"]
[PlyCount "21"]
[TimeControl "900+10"]

1. c4 {[%emt 0:0:0]} e5 {[%emt 0:0:0]} 2. Nc3 {[%emt 0:0:0]} Nf6 {[%emt 0:0:0]
} 3. Nf3 {[%emt 0:0:0]} Nc6 {[%emt 0:0:0]} 4. g3 {[%emt 0:0:0]} d5 {[%emt 0:0:0]} 5. cxd5 {[%emt 0:0:3]} Nxd5 {[%emt 0:0:0]} 6. Bg2 {[%emt 0:0:4]} Nb6 {[%emt 0:0:0]} 7. 0-0 {[%emt 0:0:8]} Be7 {[%emt 0:0:0]} 8. Rb1 {[%emt 0:1:28]} a5 {[%emt 0:0:5]} 9. d3 {[%emt 0:0:2]} 0-0 {[%emt 0:0:3]
} 10. Be3 {[%emt 0:0:3]} Be6 {[%emt 0:0:16]} 11. d4 {[%emt 0:0:0]} 1/2-1/2

[Event "FIDE World Rapid-ch Open 2018"]
[White "Korobov, Anton"]
[Black "Firouzja, Alireza"]
[Site "St. Petersburg"]
[Round "14.8"]
[Annotator "ChessBase"]
[Result "1-0"]
[Date "2018.12.28"]
[WhiteElo "2698"]
[BlackElo "2607"]
[PlyCount "91"]
[TimeControl "900+10"]

1. d4 {[%emt 0:0:0]} Nf6 {[%emt 0:0:0]} 2. c4 {[%emt 0:0:0]} g6 {[%emt 0:0:0]} 3. Nc3 {[%emt 0:0:0]} Bg7 {[%emt 0:0:0]} 4. e4 {[%emt 0:0:0]} d6 {[%emt 0:0:0]} 5. f3 {[%emt 0:0:0]} 0-0 {[%emt 0:0:0]} 6. Nge2 {[%emt 0:0:0]} c5 {[%emt 0:0:3]} 7. d5 {[%emt 0:0:2]} e6 {[%emt 0:0:2]} 8. Bg5 {[%emt 0:0:11]
} h6 {[%emt 0:0:36]} 9. Be3 {[%emt 0:0:2]} exd5 {[%emt 0:0:0]} 10. cxd5 {[%emt 0:0:2]} a6 {[%emt 0:0:1]} 11. Qd2 {[%emt 0:0:21]} h5 {[%emt 0:1:5]} 12. a4 {[%emt 0:0:27]} Nbd7 {[%emt 0:0:3]} 13. Nc1 {[%emt 0:0:14]
} Rb8 {[%emt 0:0:33]} 14. Be2 {[%emt 0:0:12]} Ne5 {[%emt 0:0:0]} 15. h3 {[%emt 0:0:42]} b5 {[%emt 0:0:19]} 16. axb5 {[%emt 0:0:20]} axb5 {[%emt 0:0:1]} 17. Nxb5 {[%emt 0:0:31]} h4 {[%emt 0:7:4]} 18. 0-0 {[%emt 0:0:55]
} Bd7 {[%emt 0:0:19]} 19. Nc3 {[%emt 0:0:38]} Rb4 {[%emt 0:0:0]} 20. b3 {[%emt 0:1:25]} Re8 {[%emt 0:1:4]} 21. Ra3 {[%emt 0:0:55]} Rd4 {[%emt 0:2:14]} 22. Qc2 {[%emt 0:0:11]} Nh5 {[%emt 0:1:2]} 23. f4 {[%emt 0:0:0]} Ng3 {[%emt 0:0:1]} 24. fxe5 {[%emt 0:0:4]} Nxf1 {[%emt 0:0:4]} 25. Bxf1 {[%emt 0:0:28]} Bxe5 {[%emt 0:0:1]} 26. Nd3 {[%emt 0:0:36]} Bg7 {[%emt 0:0:26]
} 27. Nf2 {[%emt 0:0:21]} Rb4 {[%emt 0:0:5]} 28. Bc4 {[%emt 0:0:0]} Qf6 {[%emt 0:0:11]} 29. Nb1 {[%emt 0:1:16]} Rbb8 {[%emt 0:0:19]} 30. Ra7 {[%emt 0:0:26]} Red8 {[%emt 0:1:8]} 31. Qa2 {[%emt 0:0:38]} Qe5 {[%emt 0:0:10]
} 32. Nd2 {[%emt 0:0:55]} Qc3 {[%emt 0:0:12]} 33. Bg5 {[%emt 0:0:0]} Qc1+ {[%emt 0:1:17]} 34. Bf1 {[%emt 0:0:2]} Bd4 {[%emt 0:0:45]} 35. Nf3 {[%emt 0:0:15]} Be3 {[%emt 0:0:1]} 36. Bxd8 {[%emt 0:0:49]} Rxd8 {[%emt 0:0:24]
} 37. Qe2 {[%emt 0:0:28]} c4 {[%emt 0:0:10]} 38. Rc7 {[%emt 0:0:0]} c3 {[%emt 0:0:7]} 39. e5 {[%emt 0:1:22]} Bb6 {[%emt 0:0:20]} 40. Rb7 {[%emt 0:0:53]} Bc5 {[%emt 0:0:17]} 41. e6 {[%emt 0:0:10]} c2 {[%emt 0:0:0]} 42. Rxd7 {[%emt 0:0:13]} Rxd7 {[%emt 0:0:8]} 43. exd7 {[%emt 0:0:0]} Bb6 {[%emt 0:0:0]} 44. Nd4 {[%emt 0:0:14]} Bxd4 {[%emt 0:0:22]} 45. d8=Q+ {[%emt 0:0:9]} Kg7 {[%emt 0:0:2]} 46. Qxh4 {[%emt 0:0:17]} 1-0

[Event "FIDE World Rapid-ch Open 2018"]
[White "Zhigalko, Sergei"]
[Black "Kamsky, Gata"]
[Site "St. Petersburg"]
[Round "14.9"]
[Annotator "ChessBase"]
[Result "1/2-1/2"]
[Date "2018.12.28"]
[WhiteElo "2604"]
[BlackElo "2666"]
[PlyCount "55"]
[TimeControl "900+10"]

1. e4 {[%emt 0:0:0]} e5 {[%emt 0:0:0]} 2. Nf3 {[%emt 0:0:0]} Nc6 {[%emt 0:0:0]
} 3. Bb5 {[%emt 0:0:0]} a6 {[%emt 0:0:0]} 4. Ba4 {[%emt 0:0:0]} Nf6 {[%emt 0:0:0]} 5. 0-0 {[%emt 0:0:0]} Be7 {[%emt 0:0:5]} 6. Re1 {[%emt 0:0:0]
} b5 {[%emt 0:0:5]} 7. Bb3 {[%emt 0:0:2]} d6 {[%emt 0:0:2]} 8. c3 {[%emt 0:0:3]} 0-0 {[%emt 0:0:2]} 9. h3 {[%emt 0:0:2]} Nb8 {[%emt 0:0:2]
} 10. d4 {[%emt 0:0:2]} Nbd7 {[%emt 0:0:2]} 11. Nbd2 {[%emt 0:0:10]
} Bb7 {[%emt 0:0:2]} 12. Bc2 {[%emt 0:0:12]} Re8 {[%emt 0:0:0]} 13. Nf1 {[%emt 0:0:6]} Bf8 {[%emt 0:0:1]} 14. Ng3 {[%emt 0:0:6]} g6 {[%emt 0:0:3]} 15. b3 {[%emt 0:0:26]} c6 {[%emt 0:0:12]} 16. Bg5 {[%emt 0:0:0]} h6 {[%emt 0:0:21]} 17. Be3 {[%emt 0:0:3]} Bg7 {[%emt 0:0:32]} 18. Qd2 {[%emt 0:0:2]} Kh7 {[%emt 0:0:2]} 19. Rad1 {[%emt 0:0:17]} Qe7 {[%emt 0:0:46]
} 20. Qc1 {[%emt 0:0:12]} Rad8 {[%emt 0:0:14]} 21. a4 {[%emt 0:0:0]} Nf8 {[%emt 0:0:40]} 22. b4 {[%emt 0:0:42]} Qc7 {[%emt 0:0:28]} 23. dxe5 {[%emt 0:1:41]} dxe5 {[%emt 0:0:2]} 24. Bb3 {[%emt 0:0:2]} Bc8 {[%emt 0:2:59]
} 25. a5 {[%emt 0:3:21]} Rxd1 {[%emt 0:0:8]} 26. Rxd1 {[%emt 0:0:3]
} Be6 {[%emt 0:0:2]} 27. Bb6 {[%emt 0:0:9]} Qb8 {[%emt 0:0:0]} 28. Qc2 1/2-1/2

[Event "FIDE World Rapid-ch Open 2018"]
[White "Grischuk, Alexander"]
[Black "Duda, Jan-Krzysztof"]
[Site "St. Petersburg"]
[Round "14.11"]
[Annotator "ChessBase"]
[Result "1/2-1/2"]
[Date "2018.12.28"]
[WhiteElo "2771"]
[BlackElo "2738"]
[PlyCount "70"]
[TimeControl "900+10"]

1. Nf3 {[%emt 0:0:0]} d5 {[%emt 0:0:0]} 2. g3 {[%emt 0:0:0]} g6 {[%emt 0:0:0]} 3. c4 {[%emt 0:0:0]} dxc4 {[%emt 0:0:15]} 4. Na3 {[%emt 0:0:1]} Bg7 {[%emt 0:0:10]} 5. Nxc4 {[%emt 0:0:3]} Nc6 {[%emt 0:0:3]} 6. d3 {[%emt 0:0:2]
} e5 {[%emt 0:1:0]} 7. Bd2 {[%emt 0:0:2]} Be6 {[%emt 0:1:55]
} 8. Qa4 {[%emt 0:1:41]} Qd7 {[%emt 0:0:40]} 9. Bc3 {[%emt 0:1:30]} f6 {[%emt 0:1:27]
} 10. h4 {[%emt 0:5:34]} Nh6 {[%emt 0:1:39]} 11. Bg2 {[%emt 0:0:0]} a6 {[%emt 0:0:19]} 12. Na5 {[%emt 0:2:4]} Nxa5 {[%emt 0:1:4]} 13. Qxd7+ {[%emt 0:0:3]} Kxd7 {[%emt 0:1:38]} 14. Bxa5 {[%emt 0:0:1]} c6 {[%emt 0:0:30]
} 15. Nd2 {[%emt 0:0:54]} Nf5 {[%emt 0:0:24]} 16. Ne4 {[%emt 0:0:0]} Nd6 {[%emt 0:1:24]} 17. Nc5+ {[%emt 0:0:7]} Ke7 {[%emt 0:0:1]} 18. Nxe6 {[%emt 0:0:40]} Kxe6 {[%emt 0:0:2]} 19. e3 {[%emt 0:0:28]} f5 {[%emt 0:0:9]
} 20. Ke2 {[%emt 0:0:3]} h5 {[%emt 0:0:31]} 21. Rhc1 {[%emt 0:0:0]} e4 {[%emt 0:0:37]} 22. d4 {[%emt 0:0:32]} Rhc8 {[%emt 0:1:28]} 23. Rc2 {[%emt 0:0:47]} Ne8 {[%emt 0:0:14]} 24. Ke1 {[%emt 0:0:27]} Nf6 {[%emt 0:0:11]
} 25. Bf1 {[%emt 0:0:2]} Bf8 {[%emt 0:0:20]} 26. Bc4+ {[%emt 0:0:10]
} Nd5 {[%emt 0:0:2]} 27. Rac1 {[%emt 0:0:19]} Bd6 {[%emt 0:0:0]} 28. Ke2 {[%emt 0:0:3]} Kd7 {[%emt 0:0:22]} 29. a3 {[%emt 0:0:32]} Rab8 {[%emt 0:1:15]} 30. Ba2 {[%emt 0:0:40]} Ra8 {[%emt 0:0:11]} 31. Bd2 {[%emt 0:0:36]
} Rc7 {[%emt 0:0:30]} 32. Ba5 {[%emt 0:0:53]} Rcc8 {[%emt 0:0:0]} 33. Bd2 {[%emt 0:0:1]} Rc7 {[%emt 0:0:2]} 34. Ba5 {[%emt 0:0:31]} Rcc8 {[%emt 0:0:1]} 35. Bd2 {[%emt 0:0:2]} Rc7 {[%emt 0:0:1]} 1/2-1/2

[Event "FIDE World Rapid-ch Open 2018"]
[White "Saric, Ivan"]
[Black "Anton Guijarro, David"]
[Site "St. Petersburg"]
[Round "14.12"]
[Annotator "ChessBase"]
[Result "1/2-1/2"]
[Date "2018.12.28"]
[WhiteElo "2695"]
[BlackElo "2642"]
[PlyCount "46"]
[TimeControl "900+10"]

1. e4 {[%emt 0:0:0]} e5 {[%emt 0:0:0]} 2. Nf3 {[%emt 0:0:0]} Nc6 {[%emt 0:0:0]
} 3. Bb5 {[%emt 0:0:0]} g6 {[%emt 0:0:0]} 4. c3 {[%emt 0:0:0]} a6 {[%emt 0:0:0]} 5. Bxc6 {[%emt 0:0:4]} dxc6 {[%emt 0:0:0]} 6. d4 {[%emt 0:0:6]
} exd4 {[%emt 0:0:3]} 7. cxd4 {[%emt 0:0:1]} Bg7 {[%emt 0:0:0]} 8. Nc3 {[%emt 0:0:1]} Ne7 {[%emt 0:0:13]} 9. h3 {[%emt 0:0:9]} h6 {[%emt 0:0:3]
} 10. Bf4 {[%emt 0:0:11]} g5 {[%emt 0:0:15]} 11. Be5 {[%emt 0:0:0]} Bxe5 {[%emt 0:0:14]} 12. Nxe5 {[%emt 0:0:8]} Be6 {[%emt 0:0:17]} 13. h4 {[%emt 0:2:42]} gxh4 {[%emt 0:2:47]} 14. f4 {[%emt 0:0:6]} h3 {[%emt 0:3:38]
} 15. g3 {[%emt 0:0:48]} Ng6 {[%emt 0:0:55]} 16. f5 {[%emt 0:0:0]} Nxe5 {[%emt 0:0:2]} 17. dxe5 {[%emt 0:0:15]} Qg5 {[%emt 0:0:3]} 18. Rxh3 {[%emt 0:4:1]} Qe3+ {[%emt 0:2:33]} 19. Qe2 {[%emt 0:1:4]} Qg1+ {[%emt 0:0:10]
} 20. Qf1 {[%emt 0:0:4]} Qe3+ {[%emt 0:0:16]} 21. Qe2 {[%emt 0:1:30]
} Qg1+ {[%emt 0:0:4]} 22. Qf1 {[%emt 0:0:2]} Qe3+ {[%emt 0:0:0]} 23. Qe2 {[%emt 0:0:17]} Qg1+ 1/2-1/2